fUSD/lending_fUSD_20260626
["ID","MTS","AMOUNT","RATE_DAILY","PERIOD"]
[426486098,1782453046000,-328.76615202,0.00025732,2]
[426486100,1782453046000,-405.20611819,0.00025732,2]
[426486101,1782453046000,-513.44880499,0.00025732,2]
[426486109,1782453046000,-351.62865496,0.00025732,2]
[426486102,1782453046000,-239.60190235,0.00025732,2]
[426486105,1782453046000,-277.1793461,0.00025732,2]
[426486089,1782453046000,-500.0,0.00025499,2]
[426486107,1782453046000,-535.88656346,0.00025732,2]
[426486099,1782453046000,-390.31084217,0.00025732,2]
[426486108,1782453046000,-607.05234978,0.00025732,2]
[426486104,1782453046000,-488.88562812,0.00025732,2]
[426486106,1782453046000,-453.54801155,0.00025732,2]
[426486111,1782453046000,-568.71657334,0.00025732,2]
[426486110,1782453046000,-588.67008379,0.00025732,2]
[426486112,1782453046000,-358.82974442,0.00025732,2]
[426486118,1782453046000,-227.75631169,0.00025732,2]
[426486113,1782453046000,-462.35750775,0.00025732,2]
[426486116,1782453046000,-387.74539922,0.00025732,2]
[426486115,1782453046000,-454.09565219,0.00025732,2]
[426486114,1782453046000,-235.17629868,0.00025732,2]
[426486103,1782453046000,-588.30376403,0.00025732,2]
[426486090,1782453046000,-590.2,0.000255,2]
[426486057,1782453046000,-347.55795086,0.00024897,2]
[426486088,1782453046000,-343.81833722,0.00025398,2]
[426486059,1782453046000,-386.087452,0.00024897,2]
[426486062,1782453046000,-341.88671888,0.00024899,2]
[426486064,1782453046000,-314.17826865,0.00024899,2]
[426486073,1782453046000,-282.4708075,0.00025,2]
[426486063,1782453046000,-356.67587091,0.00024899,2]
[426486065,1782453046000,-392.90246627,0.00024899,2]
[426486066,1782453046000,-380.50041499,0.00024899,2]
[426486086,1782453046000,-216.0,0.00025395,2]
[426486068,1782453046000,-351.14354776,0.00024932,2]
[426486072,1782453046000,-360.37685869,0.00025,2]
[426486069,1782453046000,-322.45718737,0.00024932,2]
[426486070,1782453046000,-350.47238519,0.00025,2]
[426486071,1782453046000,-1493.365294,0.00025,2]
[426486067,1782453046000,-223.59437418,0.000249,2]
[426486077,1782453046000,-552.62535287,0.00025,2]
[426486074,1782453046000,-288.84550423,0.00025,2]
[426486087,1782453046000,-3649.0,0.00025395,2]
[426486083,1782453046000,-1500.0,0.00025319,2]
[426486085,1782453046000,-1277.0,0.00025395,2]
[426486080,1782453046000,-356.54983586,0.00025,2]
[426486117,1782453046000,-168.1208537,0.00025732,2]
[426486097,1782453046000,-452.46903484,0.00025731,2]
[426486082,1782453046000,-280.41,0.000251,7]
[426486081,1782453046000,-3480.73116697,0.00025045,2]
[426486076,1782453046000,-1833.54711031,0.00025,2]
[426486079,1782453046000,-1083.10966445,0.00025,2]
[426486075,1782453046000,-1202.48522654,0.00025,2]
[426486084,1782453046000,-1309.254,0.00025395,2]
[426486163,1782453047000,-7337.20314871,0.00026222,2]
[426486160,1782453047000,-465.76,0.00026027,7]
[426486158,1782453047000,-173.0,0.00026,7]
[426486167,1782453047000,-973.56690014,0.0002629,2]
[426486157,1782453047000,-7337.20314871,0.00026,2]
[426486147,1782453047000,-589.3536994,0.00025737,2]
[426486148,1782453047000,-471.26740298,0.00025737,2]
[426486151,1782453047000,-526.71532165,0.00025771,2]
[426486149,1782453047000,-570.75062249,0.00025737,2]
[426486155,1782453047000,-1977.35,0.00025786,2]
[426486154,1782453047000,-483.68578106,0.00025771,2]
[426486162,1782453047000,-152.0,0.00026191,3]
[426486172,1782453047000,-585.46626326,0.0002629,2]
[426486165,1782453047000,-529.98212834,0.0002629,2]
[426486161,1782453047000,-150.0,0.00026075,5]
[426486164,1782453047000,-2766.67,0.00026272,7]
[426486159,1782453047000,-252.45,0.00026027,7]
[426486166,1782453047000,-671.08099233,0.0002629,2]
[426486168,1782453047000,-603.29204645,0.0002629,2]
[426486174,1782453047000,-471.21617241,0.00026291,2]
[426486171,1782453047000,-203.07370782,0.0002629,2]
[426486179,1782453047000,-651.84750416,0.00026291,2]
[426486170,1782453047000,-493.14922803,0.0002629,2]
[426486173,1782453047000,-607.80917729,0.0002629,2]
[426486180,1782453047000,-554.35869221,0.00026291,2]
[426486145,1782453047000,-162.91433789,0.00025737,2]
[426486156,1782453047000,-350.0,0.00025833,7]
[426486150,1782453047000,-334.98540281,0.00025739,2]
[426486135,1782453047000,-579.131178,0.00025735,2]
[426486153,1782453047000,-535.04052185,0.00025771,2]
[426486178,1782453047000,-784.40501871,0.00026291,2]
[426486120,1782453047000,-463.94933854,0.00025735,2]
[426486121,1782453047000,-197.39446311,0.00025735,2]
[426486123,1782453047000,-200.81250813,0.00025735,2]
[426486127,1782453047000,-210.15283558,0.00025735,2]
[426486122,1782453047000,-781.41447507,0.00025735,2]
[426486124,1782453047000,-629.17099775,0.00025735,2]
[426486131,1782453047000,-521.33692629,0.00025735,2]
[426486129,1782453047000,-215.22584365,0.00025735,2]
[426486125,1782453047000,-875.94472912,0.00025735,2]
[426486130,1782453047000,-247.60756891,0.00025735,2]
[426486128,1782453047000,-155.86309944,0.00025735,2]
[426486152,1782453047000,-221.0474234,0.00025771,2]
[426486126,1782453047000,-549.17895984,0.00025735,2]
[426486134,1782453047000,-458.30591883,0.00025735,2]
[426486133,1782453047000,-206.91955393,0.00025735,2]
[426486136,1782453047000,-204.12225889,0.00025735,2]
[426486140,1782453047000,-347.07494366,0.00025735,2]
[426486137,1782453047000,-237.46898768,0.00025735,2]
[426486139,1782453047000,-242.60207522,0.00025735,2]
[426486142,1782453047000,-504.17374726,0.00025737,2]
[426486138,1782453047000,-233.86453745,0.00025735,2]
[426486143,1782453047000,-511.59236022,0.00025737,2]
[426486141,1782453047000,-239.47233027,0.00025737,2]
[426486146,1782453047000,-535.01380636,0.00025737,2]
[426486144,1782453047000,-512.83007832,0.00025737,2]
[426486132,1782453047000,-185.37661909,0.00025735,2]
[426486177,1782453047000,-235.47246472,0.00026291,2]
[426486119,1782453047000,-488.4583939,0.00025735,2]
[426486175,1782453047000,-684.59840665,0.00026291,2]
[426486217,1782453047000,-183.57407648,0.00026294,2]
[426486216,1782453047000,-429.98256603,0.00026294,2]
[426486210,1782453047000,-1167.9263055,0.00026294,2]
[426486212,1782453047000,-230.04142802,0.00026294,2]
[426486215,1782453047000,-732.23861313,0.00026294,2]
[426486211,1782453047000,-383.07081972,0.00026294,2]
[426486214,1782453047000,-443.76556955,0.00026294,2]
[426486213,1782453047000,-419.34704239,0.00026294,2]
[426486219,1782453047000,-311.72619887,0.00026294,2]
[426486224,1782453047000,-695.11590172,0.00026294,2]
[426486226,1782453047000,-370.75323817,0.00026294,2]
[426486220,1782453047000,-430.45168729,0.00026294,2]
[426486209,1782453047000,-838.89466367,0.00026294,2]
[426486223,1782453047000,-234.31018532,0.00026294,2]
[426486222,1782453047000,-386.80706993,0.00026294,2]
[426486225,1782453047000,-159.86603442,0.00026294,2]
[426486221,1782453047000,-185.77043006,0.00026294,2]
[426486228,1782453047000,-413.83910787,0.00026294,2]
[426486231,1782453047000,-832.83693817,0.00026294,2]
[426486229,1782453047000,-406.36305607,0.00026294,2]
[426486232,1782453047000,-392.67098723,0.00026294,2]
[426486234,1782453047000,-394.78892622,0.00026294,2]
[426486230,1782453047000,-372.11827417,0.00026294,2]
[426486235,1782453047000,-611.07455844,0.00026294,2]
[426486236,1782453047000,-772.174904,0.00026294,2]
[426486237,1782453047000,-408.24451778,0.00026294,2]
[426486227,1782453047000,-312.14028747,0.00026294,2]
[426486218,1782453047000,-157.98232425,0.00026294,2]
[426486233,1782453047000,-802.00857981,0.00026294,2]
[426486207,1782453047000,-222.61627289,0.00026294,2]
[426486208,1782453047000,-184.35368885,0.00026294,2]
[426486176,1782453047000,-479.20380471,0.00026291,2]
[426486181,1782453047000,-604.73068207,0.00026291,2]
[426486193,1782453047000,-336.2417074,0.00026291,2]
[426486192,1782453047000,-581.61809882,0.00026291,2]
[426486182,1782453047000,-714.51541795,0.00026291,2]
[426486183,1782453047000,-809.40313304,0.00026291,2]
[426486185,1782453047000,-527.44298244,0.00026291,2]
[426486190,1782453047000,-470.35259735,0.00026291,2]
[426486189,1782453047000,-616.476677,0.00026291,2]
[426486187,1782453047000,-758.28876445,0.00026291,2]
[426486188,1782453047000,-538.24461662,0.00026291,2]
[426486184,1782453047000,-371.32816974,0.00026291,2]
[426486186,1782453047000,-784.89344506,0.00026291,2]
[426486169,1782453047000,-245.45203645,0.0002629,2]
[426486194,1782453047000,-455.51262337,0.00026291,2]
[426486191,1782453047000,-605.46086959,0.00026291,2]
[426486206,1782453047000,-352.41727056,0.00026294,2]
[426486205,1782453047000,-420.08014281,0.00026294,2]
[426486197,1782453047000,-406.88148641,0.00026294,2]
[426486203,1782453047000,-301.31824224,0.00026294,2]
[426486202,1782453047000,-401.62501627,0.00026294,2]
[426486195,1782453047000,-651.27785853,0.00026294,2]
[426486196,1782453047000,-618.59911806,0.00026294,2]
[426486198,1782453047000,-160.36026561,0.00026294,2]
[426486204,1782453047000,-427.94568763,0.00026294,2]
[426486201,1782453047000,-165.89082916,0.00026294,2]
[426486199,1782453047000,-396.19535687,0.00026294,2]
[426486200,1782453047000,-1041.88596676,0.00026294,2]
[426486276,1782453048000,-7856.19766459,0.000264,2]
[426486277,1782453048000,-262.725384,0.000264,2]
[426486278,1782453048000,-262.725384,0.000264,2]
[426486275,1782453048000,-442.09484681,0.0002633,2]
[426486269,1782453048000,-713.38736246,0.0002633,2]
[426486274,1782453048000,-688.54096041,0.0002633,2]
[426486272,1782453048000,-212.57893761,0.0002633,2]
[426486273,1782453048000,-644.91437474,0.0002633,2]
[426486270,1782453048000,-488.32581337,0.0002633,2]
[426486271,1782453048000,-436.55607242,0.0002633,2]
[426486281,1782453048000,-7337.20314871,0.00026444,2]
[426486282,1782453048000,-9916.24260584,0.00026482,2]
[426486286,1782453048000,-186.12,0.00026575,2]
[426486284,1782453048000,-482.5,0.00026564,2]
[426486280,1782453048000,-262.725384,0.000264,2]
[426486287,1782453048000,-151.0,0.00026575,2]
[426486268,1782453048000,-325.82867579,0.0002633,2]
[426486285,1782453048000,-185.24,0.00026575,2]
[426486283,1782453048000,-1212.10832609,0.00026482,2]
[426486289,1782453048000,-573.72,0.00026575,2]
[426486293,1782453048000,-632.13326771,0.00026594,2]
[426486290,1782453048000,-573.74,0.00026575,2]
[426486292,1782453048000,-482.5,0.0002658,2]
[426486296,1782453048000,-1000.0,0.0002677,2]
[426486291,1782453048000,-151.0,0.0002658,2]
[426486279,1782453048000,-262.725384,0.000264,2]
[426486267,1782453048000,-427.90863793,0.0002633,2]
[426486264,1782453048000,-5000.0,0.00026312,2]
[426486266,1782453048000,-5000.0,0.00026312,2]
[426486297,1782453048000,-160.16121408,0.00026799,2]
[426486240,1782453048000,-705.66158715,0.00026294,2]
[426486238,1782453048000,-193.71624186,0.00026294,2]
[426486241,1782453048000,-485.20415044,0.00026294,2]
[426486239,1782453048000,-474.93797536,0.00026294,2]
[426486242,1782453048000,-350.34243715,0.00026296,2]
[426486253,1782453048000,-408.3186471,0.00026296,2]
[426486245,1782453048000,-478.94466054,0.00026296,2]
[426486246,1782453048000,-430.15846699,0.00026296,2]
[426486244,1782453048000,-495.21513783,0.00026296,2]
[426486248,1782453048000,-630.16990972,0.00026296,2]
[426486249,1782453048000,-491.36793604,0.00026296,2]
[426486265,1782453048000,-5000.0,0.00026312,2]
[426486247,1782453048000,-672.23166301,0.00026296,2]
[426486252,1782453048000,-683.77343775,0.00026296,2]
[426486250,1782453048000,-675.77373172,0.00026296,2]
[426486254,1782453048000,-157.37190284,0.00026296,2]
[426486259,1782453048000,-761.00082998,0.00026296,2]
[426486256,1782453048000,-713.35174182,0.00026296,2]
[426486257,1782453048000,-785.80493254,0.00026296,2]
[426486255,1782453048000,-304.42845031,0.00026296,2]
[426486263,1782453048000,-5000.0,0.00026312,2]
[426486260,1782453048000,-243.97885196,0.00026298,2]
[426486262,1782453048000,-280.41,0.000263,7]
[426486258,1782453048000,-628.3565373,0.00026296,2]
[426486261,1782453048000,-502.47810422,0.00026298,2]
[426486243,1782453048000,-420.30567117,0.00026296,2]
[426486251,1782453048000,-682.12314696,0.00026296,2]
[426486294,1782453048000,-7337.20314871,0.00026667,2]
[426486295,1782453048000,-500.0,0.0002677,2]
[426486322,1782453048000,-7337.20314871,0.00026889,2]
[426486330,1782453048000,-162.78,0.00027,2]
[426486324,1782453048000,-806.14296843,0.00026889,2]
[426486325,1782453048000,-162.81,0.00027,2]
[426486332,1782453048000,-162.78,0.00027,2]
[426486334,1782453048000,-280.41,0.00027,7]
[426486344,1782453048000,-202.0,0.00027118,5]
[426486336,1782453048000,-500.0,0.00027071,2]
[426486333,1782453048000,-162.78,0.00027,2]
[426486343,1782453048000,-7337.20314871,0.00027111,2]
[426486335,1782453048000,-1087.86788381,0.00027034,10]
[426486339,1782453048000,-5000.0,0.00027072,2]
[426486340,1782453048000,-5000.0,0.00027072,2]
[426486337,1782453048000,-7093.85568988,0.00027072,2]
[426486342,1782453048000,-790.89,0.00027083,7]
[426486341,1782453048000,-5000.0,0.00027072,2]
[426486349,1782453048000,-461.0,0.00027382,2]
[426486351,1782453048000,-8298.17175835,0.0002739,2]
[426486345,1782453048000,-152.0,0.00027137,4]
[426486348,1782453048000,-466.41440324,0.00027349,2]
[426486352,1782453048000,-482.5,0.00027397,2]
[426486350,1782453048000,-4200.93278025,0.0002739,2]
[426486346,1782453048000,-350.0,0.00027281,9]
[426486347,1782453048000,-7337.20314871,0.00027333,2]
[426486288,1782453048000,-644.45,0.00026575,2]
[426486329,1782453048000,-162.78,0.00027,2]
[426486327,1782453048000,-162.78,0.00027,2]
[426486338,1782453048000,-5000.0,0.00027072,2]
[426486326,1782453048000,-162.78,0.00027,2]
[426486298,1782453048000,-500.0,0.00026799,2]
[426486323,1782453048000,-877.85886941,0.00026889,2]
[426486299,1782453048000,-300.0,0.00026799,10]
[426486305,1782453048000,-814.80938021,0.0002685,2]
[426486302,1782453048000,-1216.95862517,0.00026849,2]
[426486308,1782453048000,-770.59584625,0.0002685,2]
[426486301,1782453048000,-838.85124041,0.00026849,2]
[426486307,1782453048000,-947.86095556,0.0002685,2]
[426486304,1782453048000,-855.74800831,0.0002685,2]
[426486300,1782453048000,-226886.66501547,0.000268,2]
[426486306,1782453048000,-755.91335259,0.0002685,2]
[426486309,1782453048000,-756.82608699,0.0002685,2]
[426486311,1782453048000,-773.24889757,0.00026852,2]
[426486303,1782453048000,-754.11505806,0.00026849,2]
[426486328,1782453048000,-162.78,0.00027,2]
[426486331,1782453048000,-162.78,0.00027,2]
[426486321,1782453048000,-982.25616567,0.00026854,2]
[426486320,1782453048000,-854.71679719,0.00026854,2]
[426486314,1782453048000,-1459.90788187,0.00026852,2]
[426486312,1782453048000,-1302.35745845,0.00026852,2]
[426486315,1782453048000,-915.29826641,0.00026852,2]
[426486317,1782453048000,-965.21863,0.00026852,2]
[426486313,1782453048000,-1048.61832959,0.00026852,2]
[426486316,1782453048000,-868.89487714,0.00026852,2]
[426486310,1782453048000,-814.09732316,0.00026852,2]
[426486318,1782453048000,-840.28957877,0.00026854,2]
[426486319,1782453048000,-852.6539337,0.00026854,2]
[426486391,1782453049000,-320.63545226,0.00027397,2]
[426486398,1782453049000,-1881.8,0.000274,2]
[426486400,1782453049000,-1000.0,0.000274,2]
[426486388,1782453049000,-236.94660287,0.00027397,2]
[426486389,1782453049000,-473.89320574,0.00027397,2]
[426486385,1782453049000,-335.69447856,0.00027397,2]
[426486386,1782453049000,-503.54171783,0.00027397,2]
[426486387,1782453049000,-671.38895711,0.00027397,2]
[426486381,1782453049000,-361.62517067,0.00027397,2]
[426486384,1782453049000,-167.84723928,0.00027397,2]
[426486393,1782453049000,-1000.0,0.000274,2]
[426486390,1782453049000,-710.83980861,0.00027397,2]
[426486394,1782453049000,-1000.0,0.000274,2]
[426486404,1782453049000,-1181.45971759,0.000274,30]
[426486396,1782453049000,-1000.0,0.000274,2]
[426486402,1782453049000,-1189.16,0.000274,2]
[426486395,1782453049000,-1000.0,0.000274,2]
[426486401,1782453049000,-1000.0,0.000274,2]
[426486397,1782453049000,-1000.0,0.000274,2]
[426486403,1782453049000,-1000.0,0.000274,2]
[426486405,1782453049000,-5225.34,0.000274,2]
[426486407,1782453049000,-5225.34,0.000274,2]
[426486416,1782453049000,-573.63,0.00027402,2]
[426486406,1782453049000,-5225.34,0.000274,2]
[426486415,1782453049000,-573.74,0.00027402,2]
[426486383,1782453049000,-658.24327144,0.00027397,2]
[426486399,1782453049000,-1000.0,0.000274,2]
[426486382,1782453049000,-493.68245358,0.00027397,2]
[426486356,1782453049000,-1500.0,0.00027397,2]
[426486374,1782453049000,-22937.24,0.00027397,10]
[426486409,1782453049000,-5225.34,0.000274,2]
[426486353,1782453049000,-185.24,0.00027397,2]
[426486354,1782453049000,-185.24,0.00027397,2]
[426486355,1782453049000,-150.0,0.00027397,2]
[426486357,1782453049000,-151.56862252,0.00027397,10]
[426486368,1782453049000,-256.349754,0.00027397,2]
[426486366,1782453049000,-256.349754,0.00027397,2]
[426486359,1782453049000,-530.66,0.00027397,2]
[426486367,1782453049000,-256.349754,0.00027397,2]
[426486369,1782453049000,-256.349754,0.00027397,2]
[426486358,1782453049000,-300.0,0.00027397,2]
[426486360,1782453049000,-755.74,0.00027397,2]
[426486364,1782453049000,-256.349754,0.00027397,2]
[426486361,1782453049000,-256.349754,0.00027397,2]
[426486362,1782453049000,-256.349754,0.00027397,2]
[426486365,1782453049000,-256.349754,0.00027397,2]
[426486363,1782453049000,-256.349754,0.00027397,2]
[426486371,1782453049000,-256.349754,0.00027397,2]
[426486370,1782453049000,-256.349754,0.00027397,2]
[426486380,1782453049000,-180.81258533,0.00027397,2]
[426486379,1782453049000,-154.13252,0.00027397,2]
[426486375,1782453049000,-151.0,0.00027397,2]
[426486372,1782453049000,-256.349754,0.00027397,2]
[426486377,1782453049000,-151.0,0.00027397,2]
[426486376,1782453049000,-19114.36,0.00027397,10]
[426486373,1782453049000,-3096.85,0.00027397,2]
[426486378,1782453049000,-151.0,0.00027397,2]
[426486392,1782453049000,-251.47,0.00027397,2]
[426486411,1782453049000,-151.0,0.00027401,2]
[426486468,1782453049000,-152.0,0.00028084,5]
[426486410,1782453049000,-151.56862248,0.000274,12]
[426486446,1782453049000,-7337.20314871,0.00027778,2]
[426486448,1782453049000,-262.725384,0.00027778,7]
[426486447,1782453049000,-262.725384,0.00027778,7]
[426486452,1782453049000,-280.41,0.000278,7]
[426486443,1782453049000,-967.37156212,0.00027728,2]
[426486451,1782453049000,-1994.865,0.00027794,17]
[426486450,1782453049000,-262.725384,0.00027778,7]
[426486449,1782453049000,-262.725384,0.00027778,7]
[426486453,1782453049000,-2766.67,0.0002784,7]
[426486456,1782453049000,-4177.7107361,0.00027976,2]
[426486454,1782453049000,-839.23619639,0.00027956,2]
[426486463,1782453049000,-643.0,0.00028,2]
[426486445,1782453049000,-151.56862248,0.00027768,20]
[426486458,1782453049000,-800.0,0.00028,2]
[426486457,1782453049000,-500.0,0.00027999,7]
[426486462,1782453049000,-160.0,0.00028,2]
[426486464,1782453049000,-22500.0,0.00028,2]
[426486459,1782453049000,-800.0,0.00028,2]
[426486460,1782453049000,-6352.74769758,0.00028,2]
[426486469,1782453049000,-9916.24260584,0.00028191,2]
[426486465,1782453049000,-7337.20314871,0.00028,2]
[426486470,1782453049000,-1212.10832609,0.00028191,2]
[426486471,1782453049000,-151.0,0.00028208,2]
[426486466,1782453049000,-151.56862248,0.00028038,22]
[426486467,1782453049000,-2334.0,0.0002807,3]
[426486412,1782453049000,-482.5,0.00027401,2]
[426486461,1782453049000,-2428.02229623,0.00028,30]
[426486444,1782453049000,-1366.0,0.0002775,3]
[426486455,1782453049000,-904.06292667,0.00027956,2]
[426486439,1782453049000,-1023.18472043,0.00027693,2]
[426486408,1782453049000,-5225.34,0.000274,2]
[426486442,1782453049000,-1053.43064329,0.00027728,2]
[426486413,1782453049000,-151.0,0.00027402,2]
[426486414,1782453049000,-573.74,0.00027402,2]
[426486419,1782453049000,-205.43653597,0.000275,2]
[426486417,1782453049000,-151.56862248,0.00027421,14]
[426486421,1782453049000,-1304.0,0.000275,7]
[426486418,1782453049000,-151.56862248,0.00027477,16]
[426486428,1782453049000,-907.09602311,0.00027688,2]
[426486422,1782453049000,-7337.20314871,0.00027556,2]
[426486420,1782453049000,-500.0,0.000275,7]
[426486423,1782453049000,-151.56862248,0.00027587,18]
[426486425,1782453049000,-1460.35035021,0.00027687,2]
[426486426,1782453049000,-904.93806968,0.00027687,2]
[426486424,1782453049000,-662.34177026,0.00027621,2]
[426486437,1782453049000,-1042.67385257,0.00027691,2]
[426486438,1782453049000,-1008.34749452,0.00027693,2]
[426486427,1782453049000,-977.77125625,0.00027688,2]
[426486436,1782453049000,-1751.88945825,0.00027691,2]
[426486435,1782453049000,-1258.3419955,0.00027691,2]
[426486434,1782453049000,-1562.82895014,0.00027691,2]
[426486429,1782453049000,-1137.43314667,0.00027688,2]
[426486433,1782453049000,-927.89867708,0.00027691,2]
[426486431,1782453049000,-981.70082054,0.00027688,2]
[426486432,1782453049000,-976.91678779,0.00027691,2]
[426486440,1782453049000,-1025.66015663,0.00027693,2]
[426486430,1782453049000,-908.19130439,0.00027688,2]
[426486441,1782453049000,-160.0,0.0002772,3]
[426486514,1782453050000,-151.56862248,0.00028915,26]
[426486510,1782453050000,-1084.875512,0.00028794,2]
[426486513,1782453050000,-157.59,0.00028863,7]
[426486512,1782453050000,-515.0,0.00028863,30]
[426486511,1782453050000,-729.6318285,0.00028813,2]
[426486505,1782453050000,-533.0,0.00028625,30]
[426486506,1782453050000,-350.0,0.00028641,11]
[426486508,1782453050000,-283.58292908,0.00028695,2]
[426486507,1782453050000,-151.92527563,0.00028658,2]
[426486504,1782453050000,-1821.0,0.00028625,30]
[426486517,1782453050000,-3741.05422555,0.00028944,3]
[426486509,1782453050000,-150.0,0.00028767,2]
[426486516,1782453050000,-25000.0,0.00028944,3]
[426486531,1782453050000,-200.0,0.00029,2]
[426486527,1782453050000,-928.0,0.00029,2]
[426486520,1782453050000,-1059.55652179,0.00028945,2]
[426486529,1782453050000,-200.0,0.00029,2]
[426486518,1782453050000,-8410.63712676,0.00028944,3]
[426486528,1782453050000,-157.59,0.00029,7]
[426486522,1782453050000,-1082.5484566,0.00028948,2]
[426486525,1782453050000,-2043.87103462,0.00028948,2]
[426486523,1782453050000,-1823.30044183,0.00028948,2]
[426486521,1782453050000,-1139.73625242,0.00028948,2]
[426486526,1782453050000,-1196.60351607,0.0002895,2]
[426486524,1782453050000,-1468.06566142,0.00028948,2]
[426486530,1782453050000,-200.0,0.00029,2]
[426486515,1782453050000,-1703.74207524,0.00028944,2]
[426486519,1782453050000,-1058.27869362,0.00028945,2]
[426486500,1782453050000,-337.0,0.00028625,30]
[426486473,1782453050000,-482.46,0.00028222,2]
[426486498,1782453050000,-322.0,0.00028625,30]
[426486474,1782453050000,-573.74,0.00028224,2]
[426486477,1782453050000,-926.02727653,0.00028234,7]
[426486540,1782453050000,-1004.04183582,0.00029,2]
[426486476,1782453050000,-223.59437418,0.00028233,2]
[426486478,1782453050000,-1277.0,0.00028395,2]
[426486475,1782453050000,-573.74,0.00028224,2]
[426486472,1782453050000,-573.74,0.00028218,2]
[426486480,1782453050000,-3649.0,0.00028395,2]
[426486479,1782453050000,-216.0,0.00028395,2]
[426486490,1782453050000,-10000.0,0.000285,2]
[426486482,1782453050000,-2334.0,0.00028406,3]
[426486483,1782453050000,-151.56862248,0.00028414,24]
[426486491,1782453050000,-2000.0,0.000285,2]
[426486481,1782453050000,-280.41,0.000284,7]
[426486486,1782453050000,-171.92,0.00028493,2]
[426486485,1782453050000,-692.0,0.00028478,2]
[426486487,1782453050000,-800.0,0.000285,2]
[426486484,1782453050000,-269.0,0.00028422,5]
[426486489,1782453050000,-2000.0,0.000285,2]
[426486488,1782453050000,-800.0,0.000285,2]
[426486492,1782453050000,-10000.0,0.000285,2]
[426486495,1782453050000,-348.0,0.00028625,30]
[426486494,1782453050000,-153.0,0.00028624,30]
[426486493,1782453050000,-280.0,0.00028624,30]
[426486496,1782453050000,-1475.0,0.00028625,30]
[426486497,1782453050000,-343.0,0.00028625,30]
[426486501,1782453050000,-155.0,0.00028625,30]
[426486503,1782453050000,-1195.0,0.00028625,30]
[426486499,1782453050000,-1071.0,0.00028625,30]
[426486502,1782453050000,-272.0,0.00028625,30]
[426486542,1782453050000,-220.39788891,0.00029,2]
[426486536,1782453050000,-800.0,0.00029,2]
[426486541,1782453050000,-450.42314283,0.00029,2]
[426486572,1782453050000,-488348.0,0.0002912,20]
[426486569,1782453050000,-262.725384,0.0002912,7]
[426486570,1782453050000,-262.725384,0.0002912,7]
[426486576,1782453050000,-500.0,0.0002923,2]
[426486573,1782453050000,-735.59213251,0.0002913,2]
[426486578,1782453050000,-500.0,0.0002923,2]
[426486574,1782453050000,-1579.72,0.000292,7]
[426486575,1782453050000,-500.0,0.0002923,2]
[426486579,1782453050000,-500.0,0.0002923,2]
[426486577,1782453050000,-500.0,0.0002923,2]
[426486581,1782453050000,-500.0,0.0002923,2]
[426486591,1782453050000,-500.0,0.00029296,2]
[426486580,1782453050000,-500.0,0.0002923,2]
[426486571,1782453050000,-262.725384,0.0002912,7]
[426486592,1782453050000,-500.0,0.00029296,2]
[426486583,1782453050000,-500.0,0.0002923,2]
[426486584,1782453050000,-500.0,0.0002923,2]
[426486585,1782453050000,-500.0,0.0002923,2]
[426486586,1782453050000,-500.0,0.0002923,2]
[426486588,1782453050000,-500.0,0.00029296,2]
[426486532,1782453050000,-216.22,0.00029,2]
[426486589,1782453050000,-500.0,0.00029296,2]
[426486587,1782453050000,-193.8166211,0.0002923,2]
[426486594,1782453050000,-500.0,0.00029296,2]
[426486596,1782453050000,-200.0,0.00029296,2]
[426486597,1782453050000,-200.0,0.00029296,2]
[426486595,1782453050000,-596.0,0.00029296,2]
[426486593,1782453050000,-500.0,0.00029296,2]
[426486582,1782453050000,-500.0,0.0002923,2]
[426486567,1782453050000,-593.5553195,0.0002912,2]
[426486590,1782453050000,-500.0,0.00029296,2]